Cogmind - Beta 14 @@@ ROGUE MODE // 2024.08.20 @ 19:33:14 Player: THN-L0C Result: Self-destructed Performance ------------- Evolutions (3) 1500 Regions Visited (7) 1400 Robots Destroyed (66) 330 Value Destroyed (2015) 2015 Prototype IDs (23) 460 Alien Tech Used (0) 0 Bonus (247) 247 TOTAL SCORE: 5952 Bonus ------- High Alert Combat Kills 33 Follower Combat Kills 21 Aligned with FarCom 300 Friendly Fire -107 Cogmind --------- Core Integrity 521/700 Matter 300/300 Energy 250/250 System Corruption 0% Temperature Cool (0) Movement Walking (190) Ox1 Location -7/Lower Caves Parts ------- > --- POWER (1) -------- Ion Engine > --- PROPULSION (4) --- Medium Treads Improved Carbon-fiber Leg Improved Carbon-fiber Leg > --- UTILITY (5) ------ High-capacity Storage Unit Launcher Guidance Computer Kinecellerator > --- WEAPON (3) ------- Flak Gun Flak Cannon Makeshift Spear > --- INVENTORY (20) --- Compact Wheel Improved Heat Sink Compact Battery (200) High-capacity Matter Pod (200) Structural Scanner Improved Terrain Scanner Seismic Detector Hardened Heavy Armor Plating System Restoration Module AWS/Thermal Flak Gun Flak Gun Gauss Cannon Remote Datajack Proton Bomb Trap Peak State ------------ > --- POWER ------------ Light Nuclear Core > --- PROPULSION ------- Improved Carbon-fiber Leg Improved Carbon-fiber Leg > --- UTILITY ---------- High-capacity Storage Unit Launcher Guidance Computer Kinecellerator Improved Light Armor Plating System Restoration Module > --- WEAPON ----------- Flak Gun Mini Grenade Launcher Great Maul > --- INVENTORY -------- Ion Engine Compact Wheel Improved Heat Sink Compact Battery High-capacity Matter Pod Structural Scanner Improved Terrain Scanner Seismic Detector Hardened Heavy Armor Plating System Restoration Module AWS/Thermal Flak Gun Flak Gun Flak Gun Flak Cannon Gauss Cannon Remote Datajack Proton Bomb Trap [Rating: 42] Favorites ----------- Power Ion Engine Engine Ion Engine Power Core Light Nuclear Core Propulsion Compact Wheel Treads Light Treads Leg Improved Carbon-fiber Leg Wheel Compact Wheel Utility High-capacity Storage Unit Device Seismic Detector Storage High-capacity Storage Unit Processor Launcher Guidance Computer Protection Medium Armor Plating Weapon EM Shotgun Energy Gun EM Shotgun Ballistic Gun Flak Gun Ballistic Cannon Flak Cannon Launcher Mini Grenade Launcher Special Weapon Mining Laser Impact Weapon Great Maul Piercing Weapon Makeshift Spear Build | -11 -10 -10 -10 -9 -8 -7 -7 ------- Run | Yrd Mat Min Exi Min Mat Fac Low Slots Evolved 6 | . . . . . 4 2 . Power . | . . . . . . . . Propulsion 2 | . . . . . 2 . . Utility 3 | . . . . . 2 1 . Weapon 1 | . . . . . . 1 . Parts Attached 69 | 7 5 13 2 3 18 16 5 Power 10 | 1 1 4 . . 2 1 1 Engine 6 | 1 . 4 . . . . 1 Core 4 | . 1 . . . 2 1 . Reactor . | . . . . . . . . Propulsion 17 | 2 2 1 . 1 8 2 1 Treads 3 | 2 . . . . . . 1 Leg 6 | . . . . . 4 2 . Wheel 8 | . 2 1 . 1 4 . . Hover . | . . . . . . . . Flight . | . . . . . . . . Utility 16 | 2 1 1 1 . 5 6 . Device 5 | 1 . . . . 1 3 . Storage 3 | 1 1 . 1 . . . . Processor 1 | . . . . . . 1 . Hackware . | . . . . . . . . Protection 7 | . . 1 . . 4 2 . Artifact . | . . . . . . . . Weapon 26 | 2 1 7 1 2 3 7 3 Energy Gun 8 | . . 5 1 1 1 . . Energy Cannon . | . . . . . . . . Ballistic Gun 8 | 2 1 . . 1 . 3 1 Ballistic Cannon 2 | . . . . . . 1 1 Launcher 4 | . . 1 . . 2 1 . Special Weapon 1 | . . 1 . . . . . Impact Weapon 2 | . . . . . . 2 . Slashing Weapon . | . . . . . . . . Piercing Weapon 1 | . . . . . . . 1 Special Melee Weapon . | . . . . . . . . Unidentified Prototypes . | . . . . . . . . Corrupted Parts 1 | . . . . . 1 . . System Corruption 2 | . . . . . 2 . . Parts Lost 26 | . . 2 . 1 13 7 3 Power 4 | . . 1 . . 1 2 . Propulsion 9 | . . 1 . 1 4 3 . Utility 7 | . . . . . 4 2 1 Weapon 6 | . . . . . 4 . 2 Highest Loss Streak 8 | . . 1 . 1 8 5 3 To Critical Strikes . | . . . . . . . . Average Slot Usage (%) 90 | . 99 99 91 93 67 83 79 Engine 7 | . 7 11 14 14 5 . 6 Core 3 | . 6 2 . . 2 6 . Treads 8 | . 26 . . . . . 6 Leg 4 | . . . . . 11 5 15 Wheel 13 | . . 27 28 28 12 15 . Device 7 | . 14 5 . . . 9 7 Storage 11 | . 14 14 14 14 9 7 7 Processor 1 | . . . . . . 2 7 Protection 7 | . . 8 14 14 11 14 4 Energy Gun 8 | . . 25 19 13 5 . . Ballistic Gun 11 | . 28 . . 8 5 9 6 Launcher 1 | . . . . . 2 5 4 Piercing Weapon 1 | . . . . . . . 6 Peak Build Rating 42 | 7 13 15 27 26 19 42 41 Average Rating 20 | 5 9 13 21 19 14 34 39 On Entrance 16 | . 7 13 15 26 15 17 35 Naked Turns . | . . . . . . . . Heaviest Build 102 | 14 89 100 102 62 61 74 64 Greatest Support 64 | 40 40 32 32 32 64 64 36 Greatest Overweight (x) 29 | . 29 5 3 1 5 4 2 Average Overweight (x) 1 | . . 2 2 1 1 . 1 Largest Inventory Capacity 25 | 8 25 25 25 20 20 20 20 Average Capacity 19 | 7 14 25 23 20 20 20 20 Most Carried 25 | 2 25 25 25 20 20 20 20 Average Carried 17 | . 11 24 23 19 17 17 18 Final Capacity 25 | 8 25 25 20 20 20 20 20 Final Carried 25 | 2 25 25 20 19 11 20 17 Class Distribution -------------------- 94% | Mutant 3% | Tank Dominant Class ---------------- Mutant | -10/Materials Mutant | -10/Mines Mutant | -10/Exiles Mutant | -9/Mines Mutant | -8/Materials Mutant | -7/Factory Mutant | -7/Lower Caves Resources | -11 -10 -10 -10 -9 -8 -7 -7 ----------- Run | Yrd Mat Min Exi Min Mat Fac Low Matter Collected 1683 | 307 37 479 . 78 194 173 415 Remotely . | . . . . . . . . Salvage Created 2007 | 92 195 514 . 277 533 203 193 Parts 111 | 6 15 35 . 6 31 15 3 Haulers Intercepted . | . . . . . . . . Recyclers Shooed 2 | . . . . . 1 1 . Parts Field Recycled . | . . . . . . . . Retrieved Matter . | . . . . . . . . Parts Self-Destructed 3 | . . . . . . . 3 Prevented . | . . . . . . . . Kills | -11 -10 -10 -10 -9 -8 -7 -7 ------- Run | Yrd Mat Min Exi Min Mat Fac Low Combat Hostiles Destroyed 50 | . 8 13 . 2 16 6 5 Melee 2 | . . . . . . 2 . Guns 29 | . 8 10 . 1 5 3 2 AOE 19 | . . 3 . 1 11 1 3 Classes Destroyed 12 | 2 3 2 . . 3 2 . Worker 2 | . . . . . . 2 . Builder 2 | . . . . . 2 . . Tunneler 6 | 2 . 4 . . . . . Recycler 4 | 1 . . . 2 . 1 . Operator 2 | . 1 . . . 1 . . Swarmer 10 | . 6 . . . . 4 . Grunt 34 | . 2 12 . 2 14 . 4 Sentry 2 | . . . . . 1 . 1 Hunter 1 | . . . . . 1 . . Programmer 2 | . . . . . . 2 . Zionite 1 | . . 1 . . . . . Assembled 1 | . . 1 . . . . . Best Kill Streak 10 | 2 3 5 . 2 10 3 3 Combat Bots Only 8 | . 3 3 . 1 8 2 3 Max Kills in Single Turn 4 | 1 1 2 . 1 4 1 2 Gunslinging . | . . . . . . . . Exploded 3 | . . 1 . 1 3 1 1 Melee 1 | . . . . . . 1 . Uniques/NPCs Destroyed . | . . . . . . . . Combat | -11 -10 -10 -10 -9 -8 -7 -7 -------- Run | Yrd Mat Min Exi Min Mat Fac Low Hostile Shots Fired 383 | . 25 39 . 5 110 122 82 Missed 142 | . 9 14 . 1 40 38 40 Damage Taken 3534 | . 161 372 . 118 1391 1149 343 Core 590 | . 41 83 . . 287 141 38 Absorbed by Shields . | . . . . . . . . Redirected to Shielding 51 | . . . . . 51 . . Core Remaining (%) 65 | 100 . . . 50 47 . . Volleys Fired 131 | 11 17 33 . 8 42 10 10 Largest 3 | 2 2 2 . 2 2 3 2 Hottest 145 | 40 40 145 . 68 75 84 72 Shots Fired 222 | 22 34 51 . 13 56 27 19 Gun 177 | 22 34 34 . 13 40 24 10 Cannon 4 | . . . . . . . 4 Launcher 32 | . . 8 . . 16 3 5 Special 9 | . . 9 . . . . . Kinetic 126 | 22 34 . . 8 24 24 14 Thermal 10 | . . 10 . . . . . Explosive 32 | . . 8 . . 16 3 5 Electromagnetic 54 | . . 33 . 5 16 . . Robot Hit Streak 12 | 7 5 9 . 5 10 12 4 Robot Miss Streak 17 | 2 2 1 . 3 3 17 10 Penetration Max . | . . . . . . . . Secondary Targets 4 | . 2 1 . . . 1 . Max Gunslinging Chain 1 | . 1 1 . . . 1 . Shots Hit Robots 161 | 13 19 34 . 10 48 27 10 Core Hits 158 | 4 13 36 . 9 52 27 17 Critical Kills 1 | . . . . . 1 . . Critical Parts Destroyed 2 | . . . . . . 2 . Critical Strikes 3 | . . . . . 1 2 . Destroy 1 | . . . . . 1 . . Smash 2 | . . . . . . 2 . Melee Attacks 7 | . . . . . . 6 1 Impact 6 | . . . . . . 6 . Slashing . | . . . . . . . . Piercing 1 | . . . . . . . 1 Sneak Attacks 2 | . . . . . . 2 . Combat Hostiles . | . . . . . . . . Follow-up Attacks . | . . . . . . . . Damage Inflicted 4854 | 145 237 990 . 204 1947 806 525 Guns 1826 | 145 227 463 . 130 486 279 96 Cannons 56 | . . . . . . . 56 Explosions 2401 | . . 479 . 74 1461 82 305 Melee 395 | . . . . . . 327 68 Ramming 128 | . 10 . . . . 118 . Kinetic 1194 | 145 227 . . 76 315 279 152 Thermal 279 | . . 48 . 74 157 . . Explosive 2170 | . . 479 . . 1304 82 305 Electromagnetic 688 | . . 463 . 54 171 . . Impact 327 | . . . . . . 327 . Slashing . | . . . . . . . . Piercing 68 | . . . . . . . 68 Highest Corruption 8 | . . . . . 2 8 . Average Corruption 3 | . . . . . 2 4 . Corruption Purged 8 | . . . . . . 8 . Corruption Blocked . | . . . . . . . . Effects 12 | . . . . . 4 8 . Message Errors 4 | . . . . . 2 2 . Matter Fused 3 | . . . . . 2 1 . Heat Flow Errors 3 | . . . . . . 3 . Energy Discharges 2 | . . . . . . 2 . Overload Shots . | . . . . . . . . Overflow Damage 246 | . . . . . 49 197 . Projectiles . | . . . . . . . . Explosions 49 | . . . . . 49 . . Melee 197 | . . . . . . 197 . Knockbacks 2 | . 1 . . . . 1 . Impact 2 | . 1 . . . . 1 . Kinetic . | . . . . . . . . Secondary . | . . . . . . . . Self-Inflicted Damage 514 | . . 24 . 65 348 77 . Shots 18 | . . 1 . 2 13 2 . Rammed 9 | . 2 . . . . 7 . Targets Rammed 18 | . 2 . . . . 16 . Kicked 9 | . . . . . . 9 . Crushed . | . . . . . . . . Highest Temperature 268 | . 27 216 . 60 57 268 17 Average Temperature 51 | . 13 61 . 25 26 106 7 Received Heat Transfer 1032 | . 60 111 . 30 648 72 111 Siege Activations . | . . . . . . . . Robots Corrupted 1 | . . . . . . 1 . Combat Hostiles . | . . . . . . . . Parts Fried 2 | . . 1 . . . 1 . Impact Corruptions 6 | . . . . . . 6 . Robots Melted . | . . . . . . . . Combat Hostiles . | . . . . . . . . Parts Melted . | . . . . . . . . Heat Transferred 300 | . . 100 . . 200 . . Parts Sabotaged . | . . . . . . . . Parts Stolen . | . . . . . . . . Parts Stripped . | . . . . . . . . Power Chain Reactions 4 | . . . . 2 2 . . Alert | -11 -10 -10 -10 -9 -8 -7 -7 ------- Run | Yrd Mat Min Exi Min Mat Fac Low Peak Influence 465 | 15 165 257 . 70 465 321 . Initial 211 | . 9 . . . . 211 . Average 92 | 7 33 134 . 11 152 186 . Maximum Alert Level 2 | . . 1 . . 2 1 . Low Security (%) 82 | 100 100 78 . 100 71 48 . Level 1 16 | . . 21 . . 18 51 . Level 2 . | . . . . . 9 . . Level 3 . | . . . . . . . . Level 4 . | . . . . . . . . Level 5 . | . . . . . . . . High Security . | . . . . . . . . Max Security . | . . . . . . . . Squads Dispatched 10 | . . . . . 7 3 . Investigation 5 | . . . . . 5 . . Extermination 3 | . . . . . . 3 . Reinforcement 2 | . . . . . 2 . . Assault . | . . . . . . . . Garrison . | . . . . . . . . Intercept . | . . . . . . . . Searches Triggered . | . . . . . . . . Construction Impeded 1 | . . . . . 1 . . Haulers Reinforced . | . . . . . . . . Active Scanning Responses . | . . . . . . . . Cargo Convoy Interrupts . | . . . . . . . . Stealth | -11 -10 -10 -10 -9 -8 -7 -7 --------- Run | Yrd Mat Min Exi Min Mat Fac Low Distress Signals 2 | . . . . . 1 1 . Communications Jammed . | . . . . . . . . Distress Signals . | . . . . . . . . Times Spotted 74 | . 18 16 . 2 22 11 5 Peak Tracking Total 6 | . 3 3 . 1 6 3 4 Tactical Retreats 3 | . 1 . . . 1 1 . Traps | -11 -10 -10 -10 -9 -8 -7 -7 ------- Run | Yrd Mat Min Exi Min Mat Fac Low Traps Triggered . | . . . . . . . . Indirectly . | . . . . . . . . Trap Hack Attempts . | . . . . . . . . Triggered . | . . . . . . . . Disarmed . | . . . . . . . . Reprogrammed . | . . . . . . . . Reused 1 | . . . . 1 . . . Traps Extracted . | . . . . . . . . Installed 2 | . . . . 1 . 1 . Triggered 1 | . . . . 1 . . . Most Traps Carried 2 | . . . . 2 2 2 1 Machines | -11 -10 -10 -10 -9 -8 -7 -7 ---------- Run | Yrd Mat Min Exi Min Mat Fac Low Machines Disabled 1 | . . . . . 1 . . Max in Single Turn 1 | . . . . . 1 . . Machines Repaired . | . . . . . . . . Machines Dismantled . | . . . . . . . . Machines Sabotaged . | . . . . . . . . Overloaded Fab Kills . | . . . . . . . . Hacking | -11 -10 -10 -10 -9 -8 -7 -7 --------- Run | Yrd Mat Min Exi Min Mat Fac Low Machines Accessed 14 | . 7 . 1 . 5 1 . Terminals 13 | . 7 . . . 5 1 . Fabricators . | . . . . . . . . Repair Stations . | . . . . . . . . Recycling Units . | . . . . . . . . Scanalyzers . | . . . . . . . . Garrison Access . | . . . . . . . . Total Hacks 38 | . 22 . 1 . 14 1 . Successful 10 | . 8 . 1 . 1 . . Failed 28 | . 14 . . . 13 1 . Catastrophic 5 | . . . . . 5 . . Database Lockouts . | . . . . . . . . Manual 30 | . 17 . 1 . 11 1 . Terminals 37 | . 22 . . . 14 1 . Fabricators . | . . . . . . . . Repair Stations . | . . . . . . . . Recycling Units . | . . . . . . . . Scanalyzers . | . . . . . . . . Garrison Access . | . . . . . . . . Terminal Hacks 7 | . 5 . 1 . 1 . . Robot Schematic 1 | . 1 . . . . . . Robot Analysis 1 | . 1 . . . . . . Branch Access Points 1 | . . . . . 1 . . Unreport Threat 1 | . 1 . . . . . . Locate Traps 1 | . 1 . . . . . . Hauler Manifests 1 | . 1 . . . . . . Derelict Proto ID Bank 1 | . . . 1 . . . . Fabricator Hacks . | . . . . . . . . Repair Station Hacks . | . . . . . . . . Recycling Unit Hacks . | . . . . . . . . Scanalyzer . | . . . . . . . . Garrison Access Hacks . | . . . . . . . . Unauthorized Hacks 3 | . 3 . . . . . . Terminals 3 | . 3 . . . . . . Botnet 3 | . 3 . . . . . . Fabricators . | . . . . . . . . Repair Stations . | . . . . . . . . Recycling Units . | . . . . . . . . Scanalyzers . | . . . . . . . . Garrison Access . | . . . . . . . . Data Cores Recovered 1 | . 1 . . . . . . Used . | . . . . . . . . Hacking Detections 12 | . 6 . . . 5 1 . Full Trace Events 6 | . 1 . . . 5 . . Feedback Events . | . . . . . . . . Feedback Blocked . | . . . . . . . . Robot Schematics Acquired 1 | . 1 . . . . . . Robots Built . | . . . . . . . . Authchips . | . . . . . . . . Time . | . . . . . . . . Total Robot Build Rating . | . . . . . . . . Part Schematics Acquired . | . . . . . . . . Parts Built . | . . . . . . . . Authchips . | . . . . . . . . Time . | . . . . . . . . Total Part Build Rating . | . . . . . . . . Parts Repaired . | . . . . . . . . Time . | . . . . . . . . Parts Recycled . | . . . . . . . . Recycled Matter . | . . . . . . . . Retrieved Matter . | . . . . . . . . Retrieved Components . | . . . . . . . . Parts Scanalyzed . | . . . . . . . . Part Schematics Acquired . | . . . . . . . . Parts Damaged . | . . . . . . . . Bothacking | -11 -10 -10 -10 -9 -8 -7 -7 ------------ Run | Yrd Mat Min Exi Min Mat Fac Low Used RIF Installer . | . . . . . . . . Robots Hacked . | . . . . . . . . Non-combat . | . . . . . . . . Combat . | . . . . . . . . Robot Hacks Applied . | . . . . . . . . Relay Couplers Released . | . . . . . . . . Fabnet Peak Effective % . | . . . . . . . . Robots Rewired . | . . . . . . . . Allies Hacked . | . . . . . . . . Hacks Repelled . | . . . . . . . . Allies | -11 -10 -10 -10 -9 -8 -7 -7 -------- Run | Yrd Mat Min Exi Min Mat Fac Low Total Allies 3 | . . 3 . . . . . Largest Group 2 | . . 2 1 . . . . Highest-Rated Group 38 | . . 38 31 . . . . Highest-Rated Ally 31 | . . 31 31 . . . . Total Orders . | . . . . . . . . Ally Attacks 8 | . . 8 . . . . . Total Damage 106 | . . 106 . . . . . Kills 3 | . . 3 . . . . . Allies Corrupted . | . . . . . . . . Allies Melted . | . . . . . . . . Intel | -11 -10 -10 -10 -9 -8 -7 -7 ------- Run | Yrd Mat Min Exi Min Mat Fac Low Robot Analysis Total 1 | . 1 . . . . . . Derelict Logs Recovered 1 | . . . . 1 . . . Drone Launches . | . . . . . . . . Drone Recoveries . | . . . . . . . . Exploration | -11 -10 -10 -10 -9 -8 -7 -7 ------------- Run | Yrd Mat Min Exi Min Mat Fac Low Turns Passed 5579 | 136 1419 1050 418 524 332 784 916 Spaces Moved 2971 | 64 627 600 248 424 146 504 358 Core 9 | 8 1 . . . . . . Treads 802 | 56 600 . . . . . 146 Legs 383 | . . . . . 31 140 212 Wheels 1777 | . 26 600 248 424 115 364 . Hover . | . . . . . . . . Flight . | . . . . . . . . Fastest Speed 50 | 50 130 130 115 115 100 100 190 Average Speed 160 | 146 198 140 141 115 141 132 242 Slowest Speed 1500 | 160 1500 175 145 115 470 190 320 Overloaded Moves . | . . . . . . . . Propulsion Burnouts . | . . . . . . . . Robots Hopped . | . . . . . . . . Cave-ins Triggered . | . . . . . . . . Exploration Rate (%) 49 | 4 87 87 62 68 23 14 49 Regions Visited 7 Branch Regions 4 Pre-discovered Areas . | . . . . . . . . Known Exits Taken . | . . . . . . . . Unknown Exits Taken 7 | 1 1 1 1 1 1 1 . Scrap Searched 8 | . . . . 2 . . 6 Spaces Dug . | . . . . . . . . Terrain Destroyed 183 | . . 32 . 10 86 19 36 Melee . | . . . . . . . . Projectile 2 | . . 2 . . . . . AOE 181 | . . 30 . 10 86 19 36 Terrain Rammed . | . . . . . . . . Walls Destroyed . | . . . . . . . . Machines Disabled . | . . . . . . . . Actions | -11 -10 -10 -10 -9 -8 -7 -7 --------- Run | Yrd Mat Min Exi Min Mat Fac Low Total 3545 | 83 775 745 317 452 213 574 386 Wait 233 | . 71 79 61 2 4 4 12 Move 2964 | 63 626 599 247 423 145 503 358 Hop . | . . . . . . . . Pick Up 66 | 2 36 10 . 7 1 10 . Fast Attach 28 | 7 2 . 1 1 7 9 1 Attach 20 | . . 2 . 2 10 3 3 Detach 7 | . 1 . . . 2 4 . Swap 21 | . 3 11 1 . 1 4 1 Drop 48 | . 17 11 7 8 1 4 . Fire 131 | 11 17 33 . 8 42 10 10 Melee 7 | . . . . . . 6 1 Ram 7 | . . . . . . 7 . Kick 9 | . . . . . . 9 . Crush 2 | . 2 . . . . . . Escape Stasis . | . . . . . . . . Rewire . | . . . . . . . . Trap 2 | . . . . 1 . 1 . Miscellaneous . | . . . . . . . . Route ------- -11/Scrapyard -10/Materials (discovered 3 exits: [*Mat x2] / [*Min]) -10/Mines (discovered 4 exits: [*Mat x2] / *Exi / [*Sub]) -10/Exiles (discovered 2 exits: [*Min x2]) -9/Mines (discovered 2 exits: *Mat x2) -8/Materials -7/Factory (discovered 2 exits: [*Fac] / [*Low]) -7/Lower Caves History --------- Turn | Location | Event 8 | -11/Scrapyard | Discovered new exit (range 16) 137 | -11/Scrapyard | Entered Materials 309 | -10/Materials | Build established: Mutant 760 | -10/Materials | Discovered new exit (range 13) 1223 | -10/Materials | Discovered new exit (range 9) 1457 | -10/Materials | Discovered new exit (range 14) 1556 | -10/Materials | Entered Mines 1724 | -10/Mines | Excavation squad dispatched 1724 | -10/Mines | A large section of the Mines collapsed 1974 | -10/Mines | Excavation squad dispatched 2124 | -10/Mines | Discovered new exit (range 16) 2170 | -10/Mines | Discovered new exit (range 5) 2270 | -10/Mines | Discovered new exit (range 12) 2411 | -10/Mines | Joined a pair of Derelicts in attacking an 0b10 outpost 2561 | -10/Mines | Received a Mining Laser from a helpful Derelict 2591 | -10/Mines | Deemed a non-threat by the Exiles lab entrance 2593 | -10/Mines | Discovered new exit (range 5) 2606 | -10/Mines | Entered Exiles 2606 | -10/Exiles | Accompanied by 1 ally 2628 | -10/Exiles | Discovered new exit (range 15) 2646 | -10/Exiles | Met 8R-AWN 2664 | -10/Exiles | Met EX-HEX 2711 | -10/Exiles | Met EX-BIN 2727 | -10/Exiles | Aligned with FarCom system 2728 | -10/Exiles | Given EX-Vault access code 2766 | -10/Exiles | Opened EX-Vault 2777 | -10/Exiles | Found AWS/Thermal 2807 | -10/Exiles | Warned to stay clear of 0b10 Research branches 2858 | -10/Exiles | Met EX-DEC 2953 | -10/Exiles | Discovered new exit (range 10) 3024 | -10/Exiles | Left Exiles lab with AWS/Thermal 3024 | -10/Exiles | Entered Mines 3167 | -9/Mines | Discovered new exit (range 16) 3169 | -9/Mines | Learned Materials terminal intel 3264 | -9/Mines | Discovered new exit (range 14) 3285 | -9/Mines | Found a hidden stash of uninstalled traps 3548 | -9/Mines | Entered Materials 3548 | -8/Materials | Evolved 4 slots: Propulsion x2, Utility x2 3549 | -8/Materials | Loaded intel: 12 terminal locations 3812 | -8/Materials | Lost 3 parts (1u2w) 3863 | -8/Materials | Core integrity fell below 50% 3864 | -8/Materials | Discovered new exit (range 10) 3878 | -8/Materials | Lost 8 parts (1p3n3u1w) 3880 | -8/Materials | Entered Factory 3880 | -7/Factory | Evolved 2 slots: Utility x1, Weapon x1 3889 | -7/Factory | Destroyed 8 combat bots 3956 | -7/Factory | Discovered new exit (range 13) 4333 | -7/Factory | Lost 5 parts (1p3n1u) 4642 | -7/Factory | Discovered new exit (range 9) 4664 | -7/Factory | Entered Lower Caves 5214 | -7/Lower Caves | Attracted the attention of an 0b10 checkpoint 5271 | -7/Lower Caves | Lost 3 parts (1u2w) 5580 | -7/Lower Caves | Self-destructed Last Messages --------------- 05181_ Acquired 21 matter. 05213_ Searching scrap... 05213_ Found Lightning Gun. 05213_ Found Hpw. Shotgun. 05213_ Found Terrain Scan Processor. 05213_ Found 55 Matter. 05214_ Acquired 55 matter. 05214_ Y-54 Guardian: "INTERCEPTING UNREGISTERED DERELICT." 05215_ Flak Gun destroyed. 05215_ Mni. Grenade Launcher destroyed. 05237_ The unstable cave ceiling collapses. 05240_ Imp. Light Armor Plating destroyed. 05241_ Y-54 Guardian destroyed. 05251_ Acquired 43 matter. 05270_ Acquired 11 matter. 05272_ Acquired 2 matter. 05278_ Acquired 3 matter. 05329_ Sneak attack on S-27 Virus. 05329_ S-27 Virus destroyed. 05347_ VTOL Module fries itself beyond repair. Map ----- +----------------------------------------------------+ | ????????????????????????## ##%##??# | | ?????????????????????????## ### #???# | | ??????????????????????????# ## ##?# #??## | | ??????????????????????????## ## #??#%#?## | | ???????????????????????????## ### #??# ### | | ???????????????????????????## #?#####??# ## | | ???????????????????????????# ##????????# ## | | ???????????????????????????# ##?????##### ## | | ???????????????????????????# ######?#% %### | | ???????????????????????????# ### % #?# | | ???????????????????????????#%% ####?# % | | ???????????????????????????####% %% % #????# [[ | | ??????????????????# ?????????# ######?#### | | ??????????????????# ????????# #?????## ####! | | ??????????????????# ???????## % ##????## | | ??????????????????# % ????#########????## | | ?????????????????? ??? #???????## #### | | ??????????????????% ???? ######### #??# | | ???????????????????% %????# ##??# | | ???????????????????? ???# ####### ####### | | ?????????????????????# ???# ###???## ### | | ????????????????????## #??# ##???# #?## | | ????????????????????# ### #???# #??# | | ?????????????????????# #?### #??# | | ??????????????????????# #?# #??# | | ???????????????????????# @ ### #??# | | ???????????????????????## ## ###??#### # | | ????????????????????????### #???????#### | | ??????????????????????????## #####??????????# | | ???????????????????????????# ##?????????????# | | ???????????????????????????# ###???????????? | | ???????????????????????????# #?????????????? | | ?????????????????????????? ?????????????? | | ?????????????????????????# ######??????????????##? | | ?????????????????????????# ??????????????????????? | | ?????????????????????????#???????????????????????? | | ?????????????????????????????????????????????????? | | ?????????????????????????????????????????????????? | | ?????????????????????????????????????????????????? | | ?????????????????????????????????????????????????? | | ?????????????????????????????????????????????????? | | ?????????????????????????????????????????????????? | | ?????????????????????????????????????????????????? | | ?????????????????????????????????????????????????? | | ?????????????????????????????????????????????????? | | ?????????????????????????????????????????????????? | | ?????????????????????????????????????????????????? | | ?????????????????????????????????????????????????? | | ?????????????????????????????????????????????????? | | ?????????????????????????????????????????????????? | +----------------------------------------------------+ Best States ------------- Heat Dissipation 48 Energy Generation 14 Energy Capacity 265 Matter Stores 300 Matter Capacity 300 Sight Range 16 Terrain Scan Density 10 Armor Coverage 525 Propulsion Shielding 33 Evasion (%) 50 Launcher Accuracy 20 Recoil Reduction 2 Kinecelleration 30 Item Schematics ----------------- None Robot Schematics ------------------ M-13 Machinist | -10/Materials | Hacked Fabricated ------------ Nothing Alien Tech Used ----------------- None Achievements -------------- None Challenges ------------ None Game ------ Seed GlidesysWardroneAirjet Manual? 0 Play Time 00:30:31 Cumulative 87.4 hours Start 2024.08.20 @ 18:59:31 End 2024.08.20 @ 19:33:14 Sessions 1 Manual Loads 0 Difficulty Rogue Special Mode None Game No. 82 Rogue 82 Adventurer 0 Explorer 0 Win Type - Total 0 Types 0/0/0/0/0/0/0/0/0 Lore% 47 Gallery% 52 Achievement% 42 Wizard Run 0 Options --------- Layout 2 ASCII 0 Keyboard 1 Movement Vi Keybinds 0 Fullscreen 1 Font 32/SmallcapsGlow Map View 77x44 Zoom Use 0% Tactical HUD 1 Map Filters NONE Filters NONE Steam 1 RUN: df188abb-679c-4b76-8d19-5ef0efb2b3b3